fUST/lending_fUST_20250523
["ID","MTS","AMOUNT","RATE_DAILY","PERIOD"]
[362053507,1747950649367,-430.0,0.00020821,2]
[362053508,1747950649376,-154.11,0.00020821,2]
[362053509,1747950649386,-430.0,0.00020821,2]
[362053510,1747950649395,-558.44,0.00020821,2]
[362053511,1747950649405,-502.53,0.00020821,2]
[362053512,1747950649415,-411.16659005,0.00020821,2]
[362053513,1747950649425,-714.6,0.00020821,2]
[362053514,1747950649434,-502.85,0.00020821,2]
[362053515,1747950649443,-430.0,0.00020821,2]
[362053516,1747950649452,-430.0,0.00020821,2]
[362053517,1747950649462,-608.58,0.00020821,2]
[362053518,1747950649471,-1587.21,0.00020821,2]
[362053519,1747950649480,-430.0,0.00020821,2]
[362053520,1747950649490,-430.0,0.00020821,2]
[362053521,1747950649500,-430.0,0.00020821,2]
[362053522,1747950649510,-430.0,0.00020821,2]
[362053523,1747950649519,-1667.9,0.00020821,2]
[362053524,1747950649528,-680.73,0.00020821,2]
[362053525,1747950649538,-430.0,0.00020821,2]
[362053526,1747950649548,-2187.17,0.00020821,2]
[362053527,1747950649558,-430.0,0.00020821,2]
[362053528,1747950649567,-1701.12,0.00020821,2]
[362053529,1747950649577,-430.0,0.00020821,2]
[362053530,1747950649587,-446.68,0.00020821,2]
[362053531,1747950649597,-2363.99954711,0.00020969,4]
[362053532,1747950649606,-1500.0,0.00021068,2]
[362053533,1747950649617,-1500.0,0.00021068,2]
[362053534,1747950649627,-1500.0,0.00021068,2]
[362053535,1747950649636,-1500.0,0.00021068,2]
[362053536,1747950649646,-1500.0,0.00021068,2]
[362053537,1747950649656,-1500.0,0.00021068,2]
[362053538,1747950649666,-1500.0,0.00021068,2]
[362053539,1747950649676,-1500.0,0.00021068,2]
[362053540,1747950649687,-1500.0,0.00021068,2]
[362053541,1747950649697,-1500.0,0.00021068,2]
[362053542,1747950649707,-1500.0,0.00021068,2]
[362053543,1747950649718,-212.4501065,0.00021084,2]
[362053544,1747950649728,-422.78357425,0.00021084,2]
[362053545,1747950649738,-314.5,0.00021095,2]
[362053546,1747950649750,-430.0,0.00021095,2]
[362053547,1747950649760,-430.0,0.00021095,2]
[362053548,1747950649770,-430.0,0.00021095,2]
[362053549,1747950649782,-490.56,0.00021095,2]
[362053550,1747950649791,-661.79,0.00021095,2]
[362053551,1747950649800,-430.0,0.00021095,2]
[362053552,1747950649810,-430.0,0.00021095,2]
[362053553,1747950649821,-2287.64,0.00021095,2]
[362053554,1747950649831,-538.17,0.00021095,2]
[362053555,1747950649842,-430.0,0.00021095,2]
[362053556,1747950649852,-430.0,0.00021095,2]
[362053557,1747950649862,-430.0,0.00021095,2]
[362053558,1747950649872,-472.36,0.00021095,2]
[362053559,1747950649881,-430.0,0.00021095,2]
[362053560,1747950649892,-1466.85,0.00021095,2]
[362053561,1747950649902,-1022.57,0.00021095,2]
[362053562,1747950649912,-1056.27,0.00021095,2]
[362053563,1747950649923,-430.0,0.00021095,2]
[362053564,1747950649933,-430.0,0.00021095,2]
[362053565,1747950649943,-430.0,0.00021095,2]
[362053566,1747950649953,-430.0,0.00021095,2]
[362053567,1747950649962,-1154.97,0.00021095,2]
[362053568,1747950649973,-430.0,0.00021095,2]
[362053569,1747950649982,-1926.02,0.00021095,2]
[362053570,1747950649993,-430.0,0.00021095,2]
[362053571,1747950650003,-430.0,0.00021095,2]
[362053572,1747950650013,-558.44,0.00021095,2]
[362053573,1747950650022,-502.53,0.00021095,2]
[362053574,1747950650033,-714.6,0.00021095,2]
[362053575,1747950650044,-430.0,0.00021095,2]
[362053576,1747950650055,-430.0,0.00021095,2]
[362053577,1747950650067,-608.58,0.00021095,2]
[362053578,1747950650077,-1587.21,0.00021095,2]
[362053579,1747950650088,-394.62,0.00021095,2]
[362053580,1747950650100,-430.0,0.00021095,2]
[362053581,1747950650111,-430.0,0.00021095,2]
[362053582,1747950650121,-430.0,0.00021095,2]
[362053583,1747950650131,-1667.9,0.00021095,2]
[362053584,1747950650141,-680.73,0.00021095,2]
[362053585,1747950650153,-2187.17,0.00021095,2]
[362053586,1747950650162,-430.0,0.00021095,2]
[362053587,1747950650172,-1701.12,0.00021095,2]
[362053588,1747950650181,-430.0,0.00021095,2]
[362053589,1747950650191,-446.68,0.00021095,2]
[362053590,1747950650200,-2363.99954711,0.00021176,4]
[362053591,1747950650210,-430.0,0.00021369,2]
[362053592,1747950650220,-470.67674074,0.00021369,2]
[362053593,1747950650229,-403.81921866,0.00021369,2]
[362053594,1747950650238,-490.56,0.00021369,2]
[362053595,1747950650248,-661.79,0.00021369,2]
[362053596,1747950650258,-203.84026358,0.00021369,2]
[362053597,1747950650268,-430.0,0.00021369,2]
[362053598,1747950650277,-2287.64,0.00021369,2]
[362053599,1747950650287,-538.17,0.00021369,2]
[362053600,1747950650297,-430.0,0.00021369,2]
[362053601,1747950650306,-430.0,0.00021369,2]
[362053602,1747950650317,-430.0,0.00021369,2]
[362053603,1747950650326,-472.36,0.00021369,2]
[362053604,1747950650340,-430.0,0.00021369,2]
[362053605,1747950650352,-1466.85,0.00021369,2]
[362053606,1747950650361,-1022.57,0.00021369,2]
[362053607,1747950650371,-1056.27,0.00021369,2]
[362053608,1747950650381,-430.0,0.00021369,2]
[362053609,1747950650391,-430.0,0.00021369,2]
[362053610,1747950650402,-430.0,0.00021369,2]
[362053611,1747950650414,-430.0,0.00021369,2]
[362053612,1747950650424,-1154.97,0.00021369,2]
[362053613,1747950650435,-430.0,0.00021369,2]
[362053614,1747950650445,-1926.02,0.00021369,2]
[362053615,1747950650455,-430.0,0.00021369,2]
[362053616,1747950650464,-430.0,0.00021369,2]
[362053617,1747950650474,-558.44,0.00021369,2]
[362053618,1747950650484,-502.53,0.00021369,2]
[362053619,1747950650495,-714.6,0.00021369,2]
[362053620,1747950650505,-430.0,0.00021369,2]
[362053621,1747950650516,-430.0,0.00021369,2]
[362053622,1747950650527,-608.58,0.00021369,2]
[362053623,1747950650537,-1587.21,0.00021369,2]
[362053624,1747950650547,-430.0,0.00021369,2]
[362053625,1747950650558,-430.0,0.00021369,2]
[362053626,1747950650567,-430.0,0.00021369,2]
[362053627,1747950650577,-1667.9,0.00021369,2]
[362053628,1747950650587,-680.73,0.00021369,2]
[362053629,1747950650596,-2187.17,0.00021369,2]
[362053630,1747950650606,-430.0,0.00021369,2]
[362053631,1747950650615,-1701.12,0.00021369,2]
[362053632,1747950650625,-430.0,0.00021369,2]
[362053633,1747950650636,-2363.99954711,0.00021383,5]
[362053634,1747950650647,-587.0,0.00021384,2]
[362053635,1747950650656,-2363.99954711,0.0002159,5]
[362053636,1747950650666,-500.0,0.00021616,2]
[362053637,1747950650677,-2000.02275469,0.00021616,2]
[362053638,1747950650686,-355.94181766,0.00021616,2]
[362053639,1747950650696,-2000.0,0.00021616,2]
[362053640,1747950650707,-2000.0,0.00021616,2]
[362053641,1747950650718,-1500.0,0.00021616,2]
[362053642,1747950650729,-2000.0,0.00021616,2]
[362053643,1747950650738,-2000.0,0.00021616,2]
[362053644,1747950650749,-2000.0,0.00021616,2]
[362053645,1747950650758,-2000.0,0.00021616,2]
[362053646,1747950650768,-2000.0,0.00021616,2]
[362053647,1747950650778,-2000.0,0.00021616,2]
[362053648,1747950650787,-500.0,0.00021623,2]
[362053649,1747950650798,-430.0,0.00021643,2]
[362053650,1747950650807,-490.56,0.00021643,2]
[362053651,1747950650817,-661.79,0.00021643,2]
[362053652,1747950650826,-430.0,0.00021643,2]
[362053653,1747950650835,-2287.64,0.00021643,2]
[362053654,1747950650845,-538.17,0.00021643,2]
[362053655,1747950650855,-510.96,0.00021643,2]
[362053656,1747950650864,-430.0,0.00021643,2]
[362053657,1747950650874,-430.0,0.00021643,2]
[362053658,1747950650885,-472.36,0.00021643,2]
[362053659,1747950650895,-430.0,0.00021643,2]
[362053660,1747950650905,-1466.85,0.00021643,2]
[362053661,1747950650914,-1022.57,0.00021643,2]
[362053662,1747950650924,-1056.27,0.00021643,2]
[362053663,1747950650933,-430.0,0.00021643,2]
[362053664,1747950650943,-430.0,0.00021643,2]
[362053665,1747950650952,-430.0,0.00021643,2]
[362053666,1747950650961,-430.0,0.00021643,2]
[362053667,1747950650971,-1154.97,0.00021643,2]
[362053668,1747950650980,-430.0,0.00021643,2]
[362053669,1747950650989,-1926.02,0.00021643,2]
[362053670,1747950650999,-430.0,0.00021643,2]
[362053671,1747950651009,-430.0,0.00021643,2]
[362053672,1747950651018,-558.44,0.00021643,2]
[362053673,1747950651026,-502.53,0.00021643,2]
[362053674,1747950651036,-714.6,0.00021643,2]
[362053675,1747950651045,-430.0,0.00021643,2]
[362053676,1747950651054,-430.0,0.00021643,2]
[362053677,1747950651064,-608.58,0.00021643,2]
[362053678,1747950651073,-1587.21,0.00021643,2]
[362053679,1747950651083,-430.0,0.00021643,2]
[362053680,1747950651094,-469.36025233,0.00021643,2]
[362053681,1747950651103,-430.0,0.00021643,2]
[362053682,1747950651113,-1667.9,0.00021643,2]
[362053683,1747950651122,-680.73,0.00021643,2]
[362053684,1747950651132,-2187.17,0.00021643,2]
[362053685,1747950651141,-430.0,0.00021643,2]
[362053686,1747950651151,-1701.12,0.00021643,2]
[362053687,1747950651160,-430.0,0.00021643,2]
[362053688,1747950651170,-2363.99954711,0.00021797,6]
[362053689,1747950651180,-215.0738,0.00021874,2]
[362053690,1747950651189,-151.0,0.00021874,2]
[362053691,1747950651198,-430.0,0.00021917,2]
[362053692,1747950651208,-490.56,0.00021917,2]
[362053693,1747950651217,-661.79,0.00021917,2]
[362053694,1747950651226,-430.0,0.00021917,2]
[362053695,1747950651235,-2287.64,0.00021917,2]
[362053696,1747950651245,-538.17,0.00021917,2]
[362053697,1747950651254,-430.0,0.00021917,2]
[362053698,1747950651263,-246.2623621,0.00021917,2]
[362053699,1747950651272,-472.36,0.00021917,2]
[362053700,1747950651281,-430.0,0.00021917,2]
[362053701,1747950651290,-1466.85,0.00021917,2]
[362053702,1747950651299,-1022.57,0.00021917,2]
[362053703,1747950651309,-1056.27,0.00021917,2]
[362053704,1747950651318,-352.22239669,0.00021917,2]
[362053705,1747950651328,-353.74,0.00021917,2]
[362053706,1747950651339,-430.0,0.00021917,2]
[362053707,1747950651349,-430.0,0.00021917,2]
[362053708,1747950651358,-1154.97,0.00021917,2]
[362053709,1747950651368,-430.0,0.00021917,2]
[362053710,1747950651377,-1926.02,0.00021917,2]
[362053711,1747950651386,-430.0,0.00021917,2]
[362053712,1747950651395,-430.0,0.00021917,2]
[362053713,1747950651405,-558.44,0.00021917,2]
[362053714,1747950651416,-502.53,0.00021917,2]
[362053715,1747950651426,-714.6,0.00021917,2]
[362053716,1747950651436,-430.0,0.00021917,2]
[362053717,1747950651445,-430.0,0.00021917,2]
[362053718,1747950651454,-608.58,0.00021917,2]
[362053719,1747950651592,-1587.21,0.00021917,2]
[362053720,1747950651629,-430.0,0.00021917,2]
[362053721,1747950651639,-430.0,0.00021917,2]
[362053722,1747950651649,-1667.9,0.00021917,2]
[362053723,1747950651658,-680.73,0.00021917,2]
[362053724,1747950651668,-2187.17,0.00021917,2]
[362053725,1747950651677,-430.0,0.00021917,2]
[362053726,1747950651687,-1701.12,0.00021917,2]
[362053727,1747950651696,-430.0,0.00021917,2]
[362053728,1747950651705,-600.0,0.00021918,2]
[362053729,1747950651715,-500.0,0.00021918,2]
[362053730,1747950651724,-500.0,0.00021918,2]
[362053731,1747950651734,-500.0,0.00021918,2]
[362053732,1747950651743,-500.0,0.00021918,2]
[362053733,1747950651753,-500.0,0.00021918,2]
[362053734,1747950651762,-500.0,0.00021918,2]
[362053735,1747950651774,-500.0,0.00021918,2]
[362053736,1747950651783,-609.64584561,0.00021918,2]
[362053737,1747950651793,-500.0,0.00021918,2]
[362053738,1747950651802,-2363.99954711,0.00022003,6]
[362053739,1747950651812,-500.0,0.00022023,2]
[362053740,1747950651822,-500.0,0.00022023,2]
[362053741,1747950651832,-500.0,0.00022023,2]
[362053742,1747950651842,-600.0,0.00022023,2]
[362053743,1747950651851,-500.0,0.00022023,2]
[362053744,1747950651861,-500.0,0.00022036,2]
[362053745,1747950651870,-500.0,0.00022036,2]
[362053746,1747950651880,-500.0,0.00022036,2]
[362053747,1747950651889,-500.0,0.00022164,2]
[362053748,1747950651899,-500.0,0.00022164,2]
[362053749,1747950651908,-1000.0,0.00022171,2]
[362053750,1747950651918,-430.0,0.00022191,2]
[362053751,1747950651927,-490.56,0.00022191,2]
[362053752,1747950651937,-661.79,0.00022191,2]
[362053753,1747950651947,-173.25570811,0.00022191,2]
[362053754,1747950651956,-2287.64,0.00022191,2]
[362053755,1747950651966,-538.17,0.00022191,2]
[362053756,1747950651975,-430.0,0.00022191,2]
[362053757,1747950651984,-472.36,0.00022191,2]
[362053758,1747950651994,-237.17382211,0.00022191,2]
[362053759,1747950652004,-1466.85,0.00022191,2]
[362053760,1747950652013,-1022.57,0.00022191,2]
[362053761,1747950652023,-1056.27,0.00022191,2]
[362053762,1747950652032,-430.0,0.00022191,2]
[362053763,1747950652041,-430.0,0.00022191,2]
[362053764,1747950652050,-1154.97,0.00022191,2]
[362053765,1747950652059,-430.0,0.00022191,2]
[362053766,1747950652069,-1926.02,0.00022191,2]
[362053767,1747950652078,-430.0,0.00022191,2]
[362053768,1747950652088,-227.94,0.00022191,2]
[362053769,1747950652097,-558.44,0.00022191,2]
[362053770,1747950652108,-502.53,0.00022191,2]
[362053771,1747950652117,-714.6,0.00022191,2]
[362053772,1747950652126,-430.0,0.00022191,2]
[362053773,1747950652135,-430.0,0.00022191,2]
[362053774,1747950652145,-608.58,0.00022191,2]
[362053775,1747950652154,-1587.21,0.00022191,2]
[362053776,1747950652164,-430.0,0.00022191,2]
[362053777,1747950652173,-430.0,0.00022191,2]
[362053778,1747950652182,-1667.9,0.00022191,2]
[362053779,1747950652192,-680.73,0.00022191,2]
[362053780,1747950652202,-2187.17,0.00022191,2]
[362053781,1747950652211,-430.0,0.00022191,2]
[362053782,1747950652221,-1701.12,0.00022191,2]
[362053783,1747950652230,-430.0,0.00022191,2]
[362053784,1747950652239,-2363.99954711,0.0002221,6]
[362053785,1747950652248,-2363.99954711,0.00022417,7]
[362053786,1747950652257,-4209.88059401,0.00022439,2]
[362053787,1747950652266,-430.0,0.00022465,2]
[362053788,1747950652276,-490.56,0.00022465,2]
[362053789,1747950652285,-661.79,0.00022465,2]
[362053790,1747950652295,-2287.64,0.00022465,2]
[362053791,1747950652305,-538.17,0.00022465,2]
[362053792,1747950652314,-430.0,0.00022465,2]
[362053793,1747950652323,-472.36,0.00022465,2]
[362053794,1747950652336,-1466.85,0.00022465,2]
[362053795,1747950652345,-1022.57,0.00022465,2]
[362053796,1747950652355,-1056.27,0.00022465,2]
[362053797,1747950652364,-497.2,0.00022465,2]
[362053798,1747950652374,-430.0,0.00022465,2]
[362053799,1747950652386,-1154.97,0.00022465,2]
[362053800,1747950652395,-430.0,0.00022465,2]
[362053801,1747950652405,-1926.02,0.00022465,2]
[362053802,1747950652415,-430.0,0.00022465,2]
[362053803,1747950652425,-558.44,0.00022465,2]
[362053804,1747950652435,-502.53,0.00022465,2]
[362053805,1747950652444,-714.6,0.00022465,2]
[362053806,1747950652454,-430.0,0.00022465,2]
[362053807,1747950652463,-430.0,0.00022465,2]
[362053808,1747950652473,-608.58,0.00022465,2]
[362053809,1747950652482,-1587.21,0.00022465,2]
[362053810,1747950652492,-424.34,0.00022465,2]
[362053811,1747950652501,-430.0,0.00022465,2]
[362053812,1747950652511,-1667.9,0.00022465,2]
[362053813,1747950652521,-680.73,0.00022465,2]
[362053814,1747950652531,-2187.17,0.00022465,2]
[362053815,1747950652540,-430.0,0.00022465,2]
[362053816,1747950652550,-1701.12,0.00022465,2]
[362053817,1747950652559,-430.0,0.00022465,2]
[362053818,1747950652569,-960.0,0.00022539,2]
[362053819,1747950652579,-707.0,0.00022539,2]
[362053820,1747950652588,-2234.0,0.00022539,2]
[362053821,1747950652598,-231.04688887,0.00022548,2]
[362053822,1747950652607,-1000.0,0.00022571,2]
[362053823,1747950652617,-1000.0,0.00022571,2]
[362053824,1747950652626,-1000.0,0.00022571,2]
[362053825,1747950652636,-1200.0,0.00022571,2]
[362053826,1747950652646,-1000.0,0.00022571,2]
[362053827,1747950652655,-1000.0,0.00022584,2]
[362053828,1747950652665,-1000.0,0.00022584,2]
[362053829,1747950652675,-1000.0,0.00022584,2]
[362053830,1747950652684,-2363.99954711,0.00022624,7]
[362053831,1747950652694,-800.0,0.00022639,2]
[362053832,1747950652703,-231.04688887,0.00022658,2]
[362053833,1747950652712,-500.0,0.00022697,2]
[362053834,1747950652722,-4209.88059393,0.00022712,2]
[362053835,1747950652731,-1500.0,0.00022719,2]
[362053836,1747950652741,-430.0,0.00022739,2]
[362053837,1747950652750,-490.56,0.00022739,2]
[362053838,1747950652759,-661.79,0.00022739,2]
[362053839,1747950652769,-2287.64,0.00022739,2]
[362053840,1747950652778,-538.17,0.00022739,2]
[362053841,1747950652787,-374.94952823,0.00022739,2]
[362053842,1747950652796,-472.36,0.00022739,2]
[362053843,1747950652806,-1466.85,0.00022739,2]
[362053844,1747950652815,-1022.57,0.00022739,2]
[362053845,1747950652825,-1056.27,0.00022739,2]
[362053846,1747950652834,-430.0,0.00022739,2]
[362053847,1747950652843,-1154.97,0.00022739,2]
[362053848,1747950652853,-186.79627051,0.00022739,2]
[362053849,1747950652863,-1926.02,0.00022739,2]
[362053850,1747950652873,-430.0,0.00022739,2]
[362053851,1747950652883,-558.44,0.00022739,2]
[362053852,1747950652892,-502.53,0.00022739,2]
[362053853,1747950652902,-714.6,0.00022739,2]
[362053854,1747950652911,-431.71068023,0.00022739,2]
[362053855,1747950652920,-430.0,0.00022739,2]
[362053856,1747950652930,-608.58,0.00022739,2]
[362053857,1747950652939,-1587.21,0.00022739,2]
[362053858,1747950652949,-430.0,0.00022739,2]
[362053859,1747950652958,-1667.9,0.00022739,2]
[362053860,1747950652968,-680.73,0.00022739,2]
[362053861,1747950652977,-2187.17,0.00022739,2]
[362053862,1747950652987,-430.0,0.00022739,2]
[362053863,1747950652997,-1701.12,0.00022739,2]
[362053864,1747950653006,-430.0,0.00022739,2]
[362053865,1747950653016,-231.04688887,0.00022767,2]
[362053866,1747950653025,-2363.99954711,0.00022831,8]
[362053867,1747950653034,-231.04688887,0.00022877,2]
[362053868,1747950653044,-4209.88059393,0.00022986,2]
[362053869,1747950653054,-231.04688887,0.00022986,2]
[362053870,1747950653063,-365.5528938,0.00023,2]
[362053871,1747950653073,-160.0,0.00023,3]
[362053872,1747950653083,-160.0,0.00023,3]
[362053873,1747950653093,-422.78357425,0.00023,3]
[362053874,1747950653103,-160.0,0.00023,3]
[362053875,1747950653112,-160.0,0.00023,3]
[362053876,1747950653123,-335.31435212,0.00023013,2]
[362053877,1747950653132,-490.56,0.00023013,2]
[362053878,1747950653142,-661.79,0.00023013,2]
[362053879,1747950653152,-2287.64,0.00023013,2]
[362053880,1747950653163,-538.17,0.00023013,2]
[362053881,1747950653172,-472.36,0.00023013,2]
[362053882,1747950653182,-1466.85,0.00023013,2]
[362053883,1747950653192,-1022.57,0.00023013,2]
[362053884,1747950653201,-1056.27,0.00023013,2]
[362053885,1747950653212,-430.0,0.00023013,2]
[362053886,1747950653222,-1154.97,0.00023013,2]
[362053887,1747950653232,-1926.02,0.00023013,2]
[362053888,1747950653241,-397.87,0.00023013,2]
[362053889,1747950653251,-558.44,0.00023013,2]
[362053890,1747950653261,-502.53,0.00023013,2]
[362053891,1747950653270,-714.6,0.00023013,2]
[362053892,1747950653279,-430.0,0.00023013,2]
[362053893,1747950653289,-608.58,0.00023013,2]
[362053894,1747950653298,-1587.21,0.00023013,2]
[362053895,1747950653308,-430.0,0.00023013,2]
[362053896,1747950653318,-1667.9,0.00023013,2]
[362053897,1747950653328,-680.73,0.00023013,2]
[362053898,1747950653341,-2187.17,0.00023013,2]
[362053899,1747950653351,-430.0,0.00023013,2]
[362053900,1747950653361,-1701.12,0.00023013,2]
[362053901,1747950653371,-449.87,0.00023013,2]
[362053902,1747950653381,-2363.99954711,0.00023038,8]
[362053903,1747950653391,-231.04688887,0.00023096,2]
[362053904,1747950653400,-1800.0,0.00023119,2]
[362053905,1747950653410,-790.36933139,0.00023119,2]
[362053906,1747950653420,-1500.0,0.00023132,2]
[362053907,1747950653430,-1500.0,0.00023132,2]
[362053908,1747950653440,-636.0,0.000232,2]
[362053909,1747950653449,-231.04688887,0.00023205,2]
[362053910,1747950653459,-223.0315306,0.00023243,2]
[362053911,1747950653469,-151.0,0.00023243,2]
[362053912,1747950653479,-2363.99954711,0.00023245,8]
[362053913,1747950653489,-4209.88059393,0.00023259,2]
[362053914,1747950653499,-2000.0,0.00023267,2]
[362053915,1747950653508,-490.56,0.00023287,2]
[362053916,1747950653518,-661.79,0.00023287,2]
[362053917,1747950653528,-2287.64,0.00023287,2]
[362053918,1747950653538,-538.17,0.00023287,2]
[362053919,1747950653548,-472.36,0.00023287,2]
[362053920,1747950653557,-1466.85,0.00023287,2]
[362053921,1747950653567,-1022.57,0.00023287,2]
[362053922,1747950653576,-1056.27,0.00023287,2]
[362053923,1747950653586,-430.0,0.00023287,2]
[362053924,1747950653595,-1154.97,0.00023287,2]
[362053925,1747950653605,-1926.02,0.00023287,2]
[362053926,1747950653615,-558.44,0.00023287,2]
[362053927,1747950653624,-502.53,0.00023287,2]
[362053928,1747950653634,-714.6,0.00023287,2]
[362053929,1747950653643,-430.0,0.00023287,2]
[362053930,1747950653652,-608.58,0.00023287,2]
[362053931,1747950653661,-1587.21,0.00023287,2]
[362053932,1747950653671,-430.0,0.00023287,2]
[362053933,1747950653681,-1667.9,0.00023287,2]
[362053934,1747950653691,-680.73,0.00023287,2]
[362053935,1747950653700,-3684.59,0.00023287,2]
[362053936,1747950653710,-2187.17,0.00023287,2]
[362053937,1747950653720,-430.0,0.00023287,2]
[362053938,1747950653730,-1701.12,0.00023287,2]
[362053939,1747950653739,-231.04688887,0.00023315,2]
[362053940,1747950653749,-823.0,0.00023333,2]
[362053941,1747950653758,-231.04688887,0.00023425,2]
[362053942,1747950653767,-151.0,0.00023442,7]
[362053943,1747950653776,-151.0,0.00023442,7]
[362053944,1747950653786,-5000.0,0.00023442,2]
[362053945,1747950653796,-2363.99954711,0.00023452,9]
[362053946,1747950653806,-151.0,0.000235,9]
[362053947,1747950653815,-1188.747292,0.0002351,2]
[362053948,1747950653824,-4209.88059393,0.00023533,2]
[362053949,1747950653834,-231.04688887,0.00023534,2]
[362053950,1747950653843,-490.56,0.00023561,2]
[362053951,1747950653853,-661.79,0.00023561,2]
[362053952,1747950653862,-151.0,0.00023561,7]
[362053953,1747950653872,-151.0,0.00023561,7]
[362053954,1747950653881,-659.125744,0.00023561,7]
[362053955,1747950653890,-659.125744,0.00023561,7]
[362053956,1747950653900,-2287.64,0.00023561,2]
[362053957,1747950653910,-538.17,0.00023561,2]
[362053958,1747950653919,-472.36,0.00023561,2]
[362053959,1747950653928,-1466.85,0.00023561,2]
[362053960,1747950653938,-1022.57,0.00023561,2]
[362053961,1747950653947,-1056.27,0.00023561,2]
[362053962,1747950653957,-151.0,0.00023561,2]
[362053963,1747950653966,-151.0,0.00023561,7]
[362053964,1747950654015,-430.0,0.00023561,2]
[362053965,1747950654025,-1154.97,0.00023561,2]
[362053966,1747950654035,-1926.02,0.00023561,2]
[362053967,1747950654045,-151.0,0.00023561,7]
[362053968,1747950654055,-558.44,0.00023561,2]
[362053969,1747950654065,-502.53,0.00023561,2]
[362053970,1747950654074,-714.6,0.00023561,2]
[362053971,1747950654083,-151.0,0.00023561,7]
[362053972,1747950654092,-492.97657829,0.00023561,2]
[362053973,1747950654102,-608.58,0.00023561,2]
[362053974,1747950654113,-151.0,0.00023561,7]
[362053975,1747950654123,-1587.21,0.00023561,2]
[362053976,1747950654132,-300.31576811,0.00023561,2]
[362053977,1747950654142,-151.0,0.00023561,7]
[362053978,1747950654151,-1667.9,0.00023561,2]
[362053979,1747950654160,-680.73,0.00023561,2]
[362053980,1747950654170,-2187.17,0.00023561,2]
[362053981,1747950654179,-151.0,0.00023561,7]
[362053982,1747950654189,-1701.12,0.00023561,2]
[362053983,1747950654198,-151.0,0.00023561,7]
[362053984,1747950654207,-151.0,0.00023561,7]
[362053985,1747950654216,-231.04688887,0.00023644,2]
[362053986,1747950654226,-2363.99954711,0.00023659,9]
[362053987,1747950654235,-2400.0,0.00023667,2]
[362053988,1747950654244,-771.81542643,0.0002368,2]
[362053989,1747950654254,-1506.90882519,0.0002368,2]
[362053990,1747950654263,-800.0,0.00023735,2]
[362053991,1747950654271,-231.04688887,0.00023753,2]
[362053992,1747950654280,-9756.63500832,0.0002376,2]
[362053993,1747950654290,-151.869866,0.0002376,7]
[362053994,1747950654299,-151.869866,0.0002376,7]
[362053995,1747950654308,-151.0,0.0002376,7]
[362053996,1747950654317,-151.0,0.0002376,7]
[362053997,1747950654328,-177.509376,0.0002376,7]
[362053998,1747950654342,-177.509376,0.0002376,7]
[362053999,1747950654351,-151.0,0.00023767,7]
[362054000,1747950654361,-151.0,0.00023767,7]
[362054001,1747950654371,-151.0,0.00023767,7]
[362054002,1747950654381,-151.0,0.00023767,7]
[362054003,1747950654391,-275.734292,0.00023767,7]
[362054004,1747950654400,-275.734292,0.00023767,7]
[362054005,1747950654411,-402.4,0.00023782,15]
[362054006,1747950654420,-151.0,0.00023782,7]